bitfinex-derivatives/quotes_BNBF0:USTF0_20241230
["timestamp","ask_amount","ask_price","bid_price","bid_amount"]
[1735594752224,0.28441006,703.21,701.47,0.28511554]
[1735594752719,0.26206496,703.2,701.47,0.28511554]
[1735594753819,1.4877888,703.19,701.47,0.28511554]
[1735594754025,0.26206496,703.18,701.47,0.28511554]
[1735594755120,1.4877888,703.19,701.47,0.28511554]
[1735594755323,0.26206485,703.18,701.47,0.28511554]
[1735594757524,0.26206485,703.17,701.47,0.28511554]
[1735594757726,0.26202664,703.16,701.47,0.28511554]
[1735594758027,0.26202664,703.15,701.47,0.28511554]
[1735594758227,1.4877888,703.19,701.47,0.28511554]
[1735594758526,0.26200226,703.18,701.47,0.28511554]
[1735594758722,1.4877888,703.19,701.47,0.28511554]
[1735594758723,0.26200226,703.17,701.47,0.28511554]
[1735594758926,0.26200226,703.16,701.47,0.28511554]
[1735594759123,0.26200226,703.15,701.47,0.28511554]
[1735594759422,0.28444242,703.13,701.47,0.28511554]
[1735594759622,0.26200226,703.12,701.47,0.28511554]
[1735594759822,0.28445455,703.1,701.47,0.28511554]
[1735594760027,0.26200226,703.09,701.47,0.28511554]
[1735594760226,0.28446669,703.07,701.47,0.28511554]
[1735594760529,0.26200741,703.06,701.47,0.28511554]
[1735594761130,0.28447883,703.04,701.47,0.28511554]
[1735594761430,0.26200741,703.03,701.47,0.28511554]
[1735594761623,0.28448692,703.02,701.47,0.28511554]
[1735594761828,0.26200741,703.01,701.47,0.28511554]
[1735594762023,0.28449502,703.0,701.47,0.28511554]
[1735594762229,0.26200741,702.99,701.47,0.28511554]
[1735594763132,0.28450311,702.98,701.47,0.28511554]
[1735594763331,0.26200741,702.97,701.47,0.28511554]
[1735594763832,0.2845112,702.96,701.47,0.28511554]
[1735594764029,0.26200741,702.95,701.47,0.28511554]
[1735594764231,0.2845193,702.94,701.47,0.28511554]
[1735594764433,0.26200741,702.93,701.47,0.28511554]
[1735594765235,0.26200741,702.92,701.47,0.28511554]
[1735594765531,0.26208308,702.91,701.47,0.28511554]
[1735594765731,0.26208308,702.9,701.47,0.28511554]
[1735594765932,0.26208308,702.89,701.47,0.28511554]
[1735594766134,0.2845193,702.94,701.47,0.28511554]
[1735594766328,0.26210934,702.93,700.79,1.05387417]
[1735594766535,0.26210934,702.92,700.81,0.28538405]
[1735594766735,0.2845193,702.94,700.81,0.28538405]
[1735594766736,0.26210934,702.91,700.81,0.28538405]
[1735594766927,0.2845193,702.94,700.81,0.28538405]
[1735594766928,0.26210934,702.9,700.81,0.28538405]
[1735594767131,0.26210934,702.89,700.81,0.28538405]
[1735594767532,0.26210934,702.88,700.81,0.28538405]
[1735594767836,0.26210934,702.87,700.81,0.28538405]
[1735594768135,0.2845193,702.94,700.81,0.28538405]
[1735594768136,0.26210934,702.86,700.81,0.28538405]
[1735594768330,0.26210934,702.85,700.81,0.28538405]
[1735594768533,0.26210934,702.84,700.81,0.28538405]
[1735594768733,0.26210934,702.83,700.81,0.28538405]
[1735594768932,0.26210934,702.82,700.81,0.28538405]
[1735594769136,0.26210934,702.81,700.81,0.28538405]
[1735594769437,0.26210934,702.8,700.81,0.28538405]
[1735594769628,0.26210934,702.79,700.81,0.28538405]
[1735594769833,0.26210934,702.78,700.81,0.28538405]
[1735594770032,0.26210934,702.77,700.81,0.28538405]
[1735594770236,0.26210934,702.76,700.81,0.28538405]
[1735594770430,0.2845193,702.94,700.81,0.28538405]
[1735594770630,0.26223256,702.93,700.81,0.28538405]
[1735594770936,0.26223256,702.92,700.81,0.28538405]
[1735594771136,0.26223256,702.91,700.81,0.28538405]
[1735594771335,0.26223256,702.9,700.81,0.28538405]
[1735594771531,0.26223256,702.89,700.81,0.28538405]
[1735594771833,0.26223256,702.88,700.81,0.28538405]
[1735594772034,0.26223256,702.87,700.81,0.28538405]
[1735594772235,0.26223256,702.86,700.81,0.28538405]
[1735594772436,0.26223256,702.93,700.81,0.28538405]
[1735594772634,0.26223256,702.92,700.81,0.28538405]
[1735594772831,0.2845193,702.94,700.81,0.28538405]
[1735594773043,0.26227459,702.93,700.81,0.28538405]
[1735594773231,0.26227459,702.92,700.81,0.28538405]
[1735594773436,0.88416086,702.91,700.81,0.28538405]
[1735594773634,0.88428392,702.9,700.81,0.28538405]
[1735594773831,0.2845193,702.94,700.81,0.28538405]
[1735594773832,0.26220532,702.89,700.81,0.28538405]
[1735594774035,0.26220532,702.93,700.81,0.28538405]
[1735594774235,0.26220532,702.92,700.81,0.28538405]
[1735594774540,0.26220532,702.91,700.81,0.28538405]
[1735594775136,1.48802206,702.92,700.81,0.28538405]
[1735594775137,0.26220532,702.9,700.81,0.28538405]
[1735594775437,1.48802206,702.92,700.81,0.28538405]
[1735594775631,0.88431796,702.91,700.81,0.28538405]
[1735594775834,0.88431796,702.9,700.81,0.28538405]
[1735594776033,0.26221699,702.89,700.81,0.28538405]
[1735594776235,0.26221699,702.88,700.81,0.28538405]
[1735594776433,0.26221699,702.87,700.81,0.28538405]
[1735594776635,0.26221699,702.91,700.81,0.28538405]
[1735594776832,0.26221699,702.9,700.81,0.28538405]
[1735594777035,0.26221699,702.91,700.81,0.28538405]
[1735594777232,0.26221699,702.9,700.81,0.28538405]
[1735594777433,0.26221699,702.89,700.81,0.28538405]
[1735594777733,0.26221699,702.88,700.81,0.28538405]
[1735594777939,1.48802206,702.92,700.81,0.28538405]
[1735594777940,0.26221699,702.91,700.81,0.28538405]
[1735594778242,0.26221699,702.9,700.81,0.28538405]
[1735594778440,0.26221699,702.89,700.89,1.05387417]
[1735594778640,0.26221699,702.88,700.89,1.05387417]
[1735594778837,0.26221699,702.87,700.89,1.05387417]
[1735594779036,0.26221699,702.86,700.89,1.05387417]
[1735594779232,0.26221699,702.85,700.89,1.05387417]
[1735594779437,0.26221699,702.84,700.89,1.05387417]
[1735594779635,0.26221699,702.83,700.89,1.05387417]
[1735594779839,0.26221699,702.82,700.89,1.05387417]
[1735594780035,0.26221699,702.81,700.89,1.05387417]
[1735594780237,0.26221699,702.8,700.89,1.05387417]
[1735594780437,0.26221699,702.79,700.89,1.05387417]
[1735594780641,0.26206167,702.91,700.89,1.05387417]
[1735594780943,0.26206167,702.9,700.91,1.05387417]
[1735594781146,0.26206167,702.91,700.91,1.05387417]
[1735594781337,0.26206167,702.9,700.91,1.05387417]
[1735594781537,0.26206167,702.89,700.91,1.05387417]
[1735594781739,0.26206167,702.88,701.0,1.05387417]
[1735594781940,0.26206167,702.87,701.0,1.05387417]
[1735594782141,0.26206167,702.86,701.0,1.05387417]
[1735594782339,0.26206167,702.85,701.0,1.05387417]
[1735594782539,0.26206167,702.84,701.0,1.05387417]
[1735594782843,0.26206167,702.83,701.06,1.05387417]
[1735594783044,0.26206167,702.82,701.06,1.05387417]
[1735594783244,0.26206352,702.81,701.06,1.05387417]
[1735594783444,0.26206352,702.91,701.06,1.05387417]
[1735594784137,0.26206352,702.91,701.1,1.05387417]
[1735594784343,0.26206352,702.9,701.1,1.05387417]
[1735594784544,0.26206352,702.89,701.1,1.05387417]
[1735594784742,0.26206352,702.88,701.1,1.05387417]
[1735594784942,0.26206352,702.87,701.1,1.05387417]
[1735594785140,0.26206352,702.86,701.1,1.05387417]
[1735594785345,1.48802206,702.92,701.23,1.05387417]
[1735594785346,0.26206352,702.85,701.23,1.05387417]
[1735594785547,0.26206352,702.84,701.23,1.05387417]
[1735594785741,0.2845193,702.94,701.23,1.05387417]
[1735594785942,1.4876139,702.83,701.23,1.05387417]
[1735594786143,0.26212538,702.82,701.23,1.05387417]
[1735594786344,0.26212538,702.81,701.23,1.05387417]
[1735594786542,0.26212538,702.8,701.0,1.05387417]
[1735594786741,0.26212538,702.79,701.0,1.05387417]
[1735594786948,0.26212538,702.78,701.0,1.05387417]
[1735594787145,0.26212538,702.77,701.0,1.05387417]
[1735594787446,0.26212538,702.76,701.0,1.05387417]
[1735594787647,0.26212538,702.75,701.0,1.05387417]
[1735594787849,0.26212538,702.74,700.98,1.05387417]
[1735594788041,0.26212538,702.73,700.98,1.05387417]
[1735594788247,1.487757,702.82,700.98,1.05387417]
[1735594788549,0.26216311,702.81,700.98,1.05387417]
[1735594788849,0.26216311,702.8,700.88,1.05387417]
[1735594789051,0.26219798,702.79,700.88,1.05387417]
[1735594789247,1.487757,702.82,700.88,1.05387417]
[1735594789248,0.26219798,702.78,700.88,1.05387417]
[1735594789548,0.26219798,702.77,700.88,1.05387417]
[1735594789746,0.26219798,702.76,700.88,1.05387417]
[1735594789941,0.26219798,702.75,700.88,1.05387417]
[1735594790147,0.26219798,702.74,700.89,1.05387417]
[1735594790348,0.26219798,702.73,700.89,1.05387417]
[1735594790548,0.26219798,702.72,700.89,1.05387417]
[1735594790751,0.26219798,702.71,700.89,1.05387417]
[1735594790949,0.26220847,702.7,700.89,1.05387417]
[1735594791151,0.26220847,702.69,700.89,1.05387417]
[1735594791351,1.487757,702.82,700.85,1.05387417]
[1735594791352,0.26220847,702.68,700.85,1.05387417]
[1735594791551,0.26220847,702.67,700.85,1.05387417]
[1735594791748,0.26220847,702.66,700.85,1.05387417]
[1735594791951,0.26220847,702.65,700.85,1.05387417]
[1735594792150,0.26220847,702.64,700.85,1.05387417]
[1735594792345,0.26220847,702.63,700.82,1.05387417]
[1735594792551,0.26220847,702.62,700.82,1.05387417]
[1735594792750,0.26220847,702.61,700.82,1.05387417]
[1735594792947,0.26220847,702.6,700.82,1.05387417]
[1735594793250,0.26220847,702.59,700.82,1.05387417]
[1735594793448,1.487757,702.82,700.86,1.05387417]
[1735594793657,0.26220558,702.81,700.86,1.05387417]
[1735594793852,0.26220558,702.8,700.86,1.05387417]
[1735594794054,0.26220558,702.79,700.86,1.05387417]
[1735594794250,0.26220558,702.78,700.86,1.05387417]
[1735594794555,0.26220558,702.77,700.86,1.05387417]
[1735594794749,0.26220558,702.76,700.87,1.05387417]
[1735594794950,0.26220558,702.75,700.87,1.05387417]
[1735594795251,0.26220558,702.74,700.87,1.05387417]
[1735594795456,0.26220558,702.73,700.87,1.05387417]
[1735594795657,1.487757,702.82,700.87,1.05387417]
[1735594795857,0.26223689,702.81,700.87,1.05387417]
[1735594796059,0.2622171,702.8,700.81,0.28538405]
[1735594796258,0.2622171,702.79,700.81,0.28538405]
[1735594796453,0.2622171,702.78,700.81,0.28538405]
[1735594796757,0.2622171,702.77,700.81,0.28538405]
[1735594796952,0.2622171,702.76,700.81,0.28538405]
[1735594797155,0.2622171,702.75,700.81,0.28538405]
[1735594797454,0.2622171,702.74,700.81,0.28538405]
[1735594797657,0.2622171,702.73,700.81,0.28538405]
[1735594797856,0.2622171,702.72,700.81,0.28538405]
[1735594798057,0.2622171,702.71,700.81,0.28538405]
[1735594798256,0.2622171,702.7,700.81,0.28538405]
[1735594798461,0.2622171,702.69,700.81,0.28538405]
[1735594798763,0.26224346,702.68,700.81,0.28538405]
[1735594798954,0.26224346,702.67,700.81,0.28538405]
[1735594799158,0.26224346,702.66,700.81,0.28538405]
[1735594799358,0.26224346,702.65,700.81,0.28538405]
[1735594799556,0.26224346,702.64,700.81,0.28538405]
[1735594799761,0.26224346,702.63,700.81,0.28538405]
[1735594799964,0.26224346,702.62,700.81,0.28538405]
[1735594800162,0.26224346,702.61,700.68,1.05387417]
[1735594800464,0.26224346,702.6,700.29,1.05387417]
[1735594800665,0.26224346,702.59,700.29,1.05387417]
[1735594800962,0.26224346,702.58,700.29,1.05387417]
[1735594801162,1.4887329,702.65,700.29,1.05387417]
[1735594801163,0.26224346,702.57,700.29,1.05387417]
[1735594801356,0.26224346,702.56,700.29,1.05387417]
[1735594801558,0.26224346,702.55,700.29,1.05387417]
[1735594801761,0.26224346,702.54,700.29,1.05387417]
[1735594801958,0.26224346,702.53,700.39,1.05387417]
[1735594802160,0.26224346,702.52,700.39,1.05387417]
[1735594802363,0.88440621,702.51,700.39,1.05387417]
[1735594802562,0.88440621,702.5,700.39,1.05387417]
[1735594802864,1.03190692,702.58,700.39,1.05387417]
[1735594803059,0.26250719,702.57,700.39,1.05387417]
[1735594803261,1.03190692,702.43,699.94,1.05387417]
[1735594803457,0.26250719,702.42,699.94,1.05387417]
[1735594803663,0.26250719,702.41,699.94,1.05387417]
[1735594803865,0.26250719,702.4,699.94,1.05387417]
[1735594804161,0.26250719,702.39,699.94,1.05387417]
[1735594804458,0.26250719,702.38,699.94,1.05387417]
[1735594804664,0.26250719,702.37,699.94,1.05387417]
[1735594804866,0.26250719,702.36,699.96,0.28573061]
[1735594805165,0.26250719,702.35,699.96,0.28573061]
[1735594805464,0.26250877,702.34,699.96,0.28573061]
[1735594805664,0.26250877,702.33,699.96,0.28573061]
[1735594805858,0.26250877,702.32,699.96,0.28573061]
[1735594806058,0.26250877,702.31,699.96,0.28573061]
[1735594806365,0.26250877,702.3,699.96,0.28573061]
[1735594806658,0.26250877,702.29,699.96,0.28573061]
[1735594806864,0.26250877,702.28,699.96,0.28573061]
[1735594807166,0.26250877,702.27,699.96,0.28573061]
[1735594807363,0.26250877,702.26,699.96,0.28573061]
[1735594807664,0.26250877,702.25,699.96,0.28573061]
[1735594807864,0.88349485,702.24,699.96,0.28573061]
[1735594808059,0.26265625,702.23,699.96,0.28573061]
[1735594808264,0.26265625,702.22,699.96,0.28573061]
[1735594808464,0.26265625,702.21,699.96,0.28573061]
[1735594808665,0.26265625,702.2,699.96,0.28573061]
[1735594808965,0.26265625,702.19,699.96,0.28573061]
[1735594809166,0.26265625,702.18,699.96,0.28573061]
[1735594809466,0.26265625,702.17,699.96,0.28573061]
[1735594809766,0.26265625,702.16,699.96,0.28573061]
[1735594809966,0.26265625,702.15,699.96,0.28573061]
[1735594810262,1.49037998,702.16,699.96,0.28573061]
[1735594810467,0.26264093,702.14,698.69,1.05387417]
[1735594810667,0.26266001,702.13,698.83,1.05387417]
[1735594810868,0.26266001,702.12,698.84,0.28618854]
[1735594811166,0.26266001,702.11,698.84,0.28618854]
[1735594811366,0.26266001,702.1,698.84,0.28618854]
[1735594811561,0.88355209,702.09,698.84,0.28618854]
[1735594811765,0.88355209,702.08,698.84,0.28618854]
[1735594812061,0.88355209,702.07,698.84,0.28618854]
[1735594812265,1.49037998,702.16,698.84,0.28618854]
[1735594812266,0.88355209,702.06,698.84,0.28618854]
[1735594812468,0.88355209,702.05,698.84,0.28618854]
[1735594812763,0.26266001,702.04,698.84,0.28618854]
[1735594812966,0.26271019,702.04,698.84,0.28618854]
[1735594813267,0.88325919,702.03,698.84,0.28618854]
[1735594813468,0.88325919,702.02,698.84,0.28618854]
[1735594813767,0.26271019,702.01,698.84,0.28618854]
[1735594813969,0.26271019,702.0,698.84,0.28618854]
[1735594814168,0.88325919,701.99,698.84,0.28618854]
[1735594814370,1.49037998,702.16,698.84,0.28618854]
[1735594814371,0.88325919,701.98,698.84,0.28618854]
[1735594814669,1.49037998,702.16,698.84,0.28618854]
[1735594814670,0.26271019,701.97,698.84,0.28618854]
[1735594814865,0.26271019,701.96,698.84,0.28618854]
[1735594815066,0.26271019,701.95,698.84,0.28618854]
[1735594815263,1.49037998,702.16,698.84,0.28618854]
[1735594815462,0.26274847,701.94,698.84,0.28618854]
[1735594815665,0.6204531,701.93,698.84,0.28618854]
[1735594815867,0.26274847,701.92,698.84,0.28618854]
[1735594816068,0.26274847,701.91,698.84,0.28618854]
[1735594816467,0.26274847,701.9,698.84,0.28618854]
[1735594816666,0.26274847,701.89,698.84,0.28618854]
[1735594816866,0.26274847,701.88,698.84,0.28618854]
[1735594817367,0.26274847,701.87,698.84,0.28618854]
[1735594817566,0.26274847,701.86,698.84,0.28618854]
[1735594817773,0.26288959,701.85,698.84,0.28618854]
[1735594817972,0.26288959,701.84,698.84,0.28618854]
[1735594818169,0.26288959,702.15,698.84,0.28618854]
[1735594818368,0.2629038,702.14,698.84,0.28618854]
[1735594818565,0.61998833,702.13,698.84,0.28618854]
[1735594818765,0.88293821,702.12,698.84,0.28618854]
[1735594818969,0.88293821,702.11,698.84,0.28618854]
[1735594819168,1.49037998,702.16,698.84,0.28618854]
[1735594819169,0.88293821,702.1,698.84,0.28618854]
[1735594819369,0.88293821,702.09,698.84,0.28618854]
[1735594819566,0.88293821,702.08,698.84,0.28618854]
[1735594819872,0.26294988,702.07,698.84,0.28618854]
[1735594820075,0.26294988,702.06,698.84,0.28618854]
[1735594820272,0.26294988,702.05,698.84,0.28618854]
[1735594820473,0.26294988,702.04,698.84,0.28618854]
[1735594820674,0.26294988,702.03,698.84,0.28618854]
[1735594820878,0.26294988,702.02,698.84,0.28618854]
[1735594821072,0.88293821,702.01,698.84,0.28618854]
[1735594821273,0.88293821,702.0,698.84,0.28618854]
[1735594821472,0.88293821,701.99,698.84,0.28618854]
[1735594821667,0.88293821,701.98,698.84,0.28618854]
[1735594821869,0.88293821,701.97,698.84,0.28618854]
[1735594822072,0.88293821,701.96,698.84,0.28618854]
[1735594822268,0.61998833,701.95,698.84,0.28618854]
[1735594822576,0.88237349,701.94,698.84,0.28618854]
[1735594822778,0.88237349,701.93,698.84,0.28618854]
[1735594823074,0.88237349,701.93,697.0,1.264649]
[1735594823075,0.88237349,701.92,688.98,4.98487352]
[1735594823276,0.263157,701.91,694.39,2.74604758]
[1735594823476,0.61921649,701.9,694.4,5.12227382]
[1735594823673,0.61921649,701.89,694.41,2.74604758]
[1735594823873,0.61921649,701.88,694.42,2.74604758]
[1735594824073,0.263157,701.87,694.42,2.74604758]
[1735594824270,0.61921649,701.86,694.43,5.12227382]
[1735594824475,0.88237349,701.86,694.44,5.12227382]
[1735594824675,0.8823911,701.85,694.45,2.74604758]
[1735594824873,0.6192286,701.84,694.46,2.74604758]
[1735594825179,0.8823911,701.84,694.47,5.12227382]
[1735594825378,0.8823911,701.83,695.64,0.28750503]
[1735594825579,0.6192286,701.83,695.64,0.28750503]
[1735594825779,0.88242388,701.82,695.64,0.28750503]
[1735594826176,0.88242388,701.81,695.64,0.28750503]
[1735594826581,1.49268136,701.96,695.64,0.28750503]
[1735594826582,0.26313049,701.8,695.64,0.28750503]
[1735594826880,0.26313049,701.79,695.64,0.28750503]
[1735594827182,0.88242388,701.78,695.64,0.28750503]
[1735594827378,0.26313049,701.77,695.64,0.28750503]
[1735594827578,0.88242388,701.77,695.64,0.28750503]
[1735594827780,0.88242388,701.76,695.64,0.28750503]
[1735594828280,0.88242388,701.75,695.64,0.28750503]
[1735594828781,0.88242388,701.74,695.64,0.28750503]
[1735594829181,0.88242388,701.73,695.64,0.28750503]
[1735594829677,0.88242388,701.72,695.64,0.28750503]
[1735594829878,0.26313049,701.71,695.64,0.28750503]
[1735594830080,0.61863443,701.71,695.64,0.28750503]
[1735594830282,0.61863443,701.7,695.64,0.28750503]
[1735594830682,0.88189358,701.7,695.64,0.28750503]
[1735594830878,0.88189358,701.69,695.64,0.28750503]
[1735594831079,0.61863443,701.68,695.64,0.28750503]
[1735594831283,0.88189358,701.68,695.64,0.28750503]
[1735594831482,0.88189358,701.67,695.64,0.28750503]
[1735594831679,0.26325915,701.66,695.64,0.28750503]
[1735594831883,0.26325915,701.65,695.64,0.28750503]
[1735594832083,0.88189358,701.65,695.64,0.28750503]
[1735594832380,0.88189358,701.64,695.64,0.28750503]
[1735594832584,0.26325915,701.63,695.64,0.28750503]
[1735594832886,0.26325915,701.62,696.33,1.0363578]
[1735594833282,0.61873696,701.61,696.33,1.0363578]
[1735594833485,0.88195533,701.61,696.33,1.0363578]
[1735594833685,0.88195533,701.6,696.33,1.0363578]
[1735594833886,0.26321837,701.59,696.65,1.0363578]
[1735594834084,0.26321837,701.58,696.65,1.0363578]
[1735594834282,0.26321837,701.57,696.65,1.0363578]
[1735594834485,0.26321837,701.56,696.65,1.0363578]
[1735594834687,0.88195533,701.56,696.65,1.0363578]
[1735594834881,0.88195533,701.56,695.93,2.11589718]
[1735594834882,0.26321837,701.55,696.18,1.0363578]
[1735594835082,0.88195533,701.55,696.18,1.0363578]
[1735594835287,0.88195533,701.54,696.18,1.0363578]
[1735594835484,0.61873696,701.53,696.18,1.0363578]
[1735594835682,0.61873696,701.52,696.18,1.0363578]
[1735594835885,0.88195533,701.51,696.18,1.0363578]
[1735594836082,0.88195533,701.5,695.58,1.0363578]
[1735594836287,0.88195533,701.49,695.58,1.0363578]
[1735594836487,0.88195533,701.48,692.55,4.20659379]
[1735594836684,0.61873696,701.47,692.56,3.6307728]
[1735594836988,0.61873696,701.46,692.57,2.69967478]
[1735594837190,0.88195533,701.46,692.57,2.69967478]
[1735594837388,0.61873696,701.45,692.58,2.33448165]
[1735594837590,0.61873696,701.44,692.59,2.69967478]
[1735594837792,0.88195533,701.44,692.6,2.33448165]
[1735594837989,0.88195533,701.43,692.61,2.69967478]
[1735594838193,0.61873696,701.42,692.61,2.69967478]
[1735594838385,0.88195533,701.42,692.62,2.33448165]
[1735594838589,0.88195533,701.41,692.63,2.69967478]
[1735594838990,0.88195533,701.4,695.79,1.03571519]
[1735594839191,0.26321837,701.39,695.79,1.03571519]
[1735594839389,0.26321837,701.38,695.79,1.03571519]
[1735594839792,0.26321837,701.37,695.79,1.03571519]
[1735594839989,0.26321837,701.37,694.87,2.11458518]
[1735594839990,0.61873696,701.36,695.67,1.03571519]
[1735594840587,0.88106099,701.35,695.67,1.03571519]
[1735594840795,0.26361177,701.34,695.67,1.03571519]
[1735594840987,0.88106099,701.33,695.67,1.03571519]
[1735594841188,0.88106099,701.33,695.53,1.03571519]
[1735594841189,0.99747142,701.31,695.53,1.03571519]
[1735594841391,0.88106099,701.3,695.53,1.03571519]
[1735594841592,0.26361177,701.29,695.53,1.03571519]
[1735594841788,0.61744922,701.28,695.53,1.03571519]
[1735594841989,0.61744922,701.27,695.53,1.03571519]
[1735594842189,0.99747142,701.31,695.53,1.03571519]
[1735594842393,0.99747142,701.31,694.79,2.11458518]
[1735594842394,0.61731213,701.26,695.46,1.03571519]
[1735594842593,0.61731213,701.25,695.46,1.03571519]
[1735594842891,0.88093217,701.24,695.46,1.03571519]
[1735594843092,0.61731213,701.23,695.46,1.03571519]
[1735594843395,1.49588417,701.25,695.35,1.03571519]
[1735594843396,0.88093217,701.22,695.35,1.03571519]
[1735594843691,0.26362004,701.21,695.35,1.03571519]
[1735594843889,0.26362004,701.2,695.35,1.03571519]
[1735594844087,0.26362004,701.19,695.35,1.03571519]
[1735594844292,0.88093217,701.19,695.35,1.03571519]
[1735594844489,0.88093217,701.18,695.35,1.03571519]
[1735594844693,0.88093217,701.18,694.93,1.03571519]
[1735594844694,0.99747142,700.83,695.15,1.03571519]
[1735594845091,0.88093217,700.82,695.15,1.03571519]
[1735594845291,0.26362004,700.81,695.15,1.03571519]
[1735594845489,0.88093217,700.8,695.15,1.03571519]
[1735594845687,0.88093217,700.79,695.15,1.03571519]
[1735594845887,0.88093217,700.78,695.15,1.03571519]
[1735594846087,0.99747142,700.45,694.58,1.03571519]
[1735594846287,0.26362004,700.44,694.58,1.03571519]
[1735594846492,0.61731213,700.43,694.58,1.03571519]
[1735594846793,0.88093217,700.42,694.58,1.03571519]
[1735594846994,0.88093217,700.41,694.58,1.03571519]
[1735594847198,0.61731213,700.4,694.58,1.03571519]
[1735594847492,0.88093217,700.39,694.58,1.03571519]
[1735594847697,0.88071743,700.38,694.58,1.03571519]
[1735594847889,0.88071743,700.37,694.58,1.03571519]
[1735594848093,0.26375965,700.36,694.58,1.03571519]
[1735594848295,0.61695778,700.35,694.8,1.03571519]
[1735594848595,0.88071743,700.34,694.8,1.03571519]
[1735594848897,0.88071743,700.33,694.8,1.03571519]
[1735594849095,0.26375965,700.32,694.8,1.03571519]
[1735594849290,0.88071743,700.31,694.72,1.03571519]
[1735594849496,0.88056686,700.3,694.72,1.03571519]
[1735594849691,0.26386763,700.29,694.72,1.03571519]
[1735594849892,0.88056686,700.28,694.72,1.03571519]
[1735594850090,0.26386763,700.27,694.72,1.03571519]
[1735594850299,0.88056686,700.26,694.72,1.03571519]
[1735594850500,0.61669923,700.25,694.82,1.03571519]
[1735594850698,0.26386763,700.24,694.82,1.03571519]
[1735594850892,0.61669923,700.23,694.82,1.03571519]
[1735594851090,0.26386763,700.22,694.82,1.03571519]
[1735594851292,0.88056686,700.21,694.82,1.03571519]
[1735594851497,0.88056686,700.21,694.97,1.03571519]
[1735594851498,0.61669923,700.2,694.97,1.03571519]
[1735594851700,0.61669923,700.19,694.97,1.03571519]
[1735594852000,0.26362143,700.18,694.97,1.03571519]
[1735594852493,0.26362143,700.17,694.97,1.03571519]
[1735594852698,0.26362143,700.16,695.73,1.03571519]
[1735594852896,0.26362143,700.15,695.73,1.03571519]
[1735594853091,1.75920559,700.15,695.73,1.03571519]
[1735594853296,0.26362143,700.14,695.73,1.03571519]
[1735594853694,1.49558416,700.15,696.23,1.03571519]
[1735594855403,0.26313186,700.14,696.54,1.03571519]
[1735594856001,1.49558416,700.15,696.54,1.03571519]
[1735594856401,1.49558416,700.15,697.2,1.03571519]
[1735594857402,0.61915611,702.36,697.2,1.03571519]
[1735594857605,0.61915611,702.36,696.48,2.11458518]
[1735594857606,1.4931884,700.25,697.48,1.03571519]
[1735594857801,0.61915611,702.34,697.48,1.03571519]
[1735594857997,1.49277207,700.47,697.48,1.03571519]
[1735594858398,0.61915611,702.31,697.48,1.03571519]
[1735594858600,0.88191465,702.3,697.48,1.03571519]
[1735594858900,0.88191465,702.29,697.48,1.03571519]
[1735594859101,0.88191465,702.28,697.48,1.03571519]
[1735594859302,2.47023259,703.61,695.08,2.01098848]
[1735594859303,0.88191465,702.27,698.09,1.03571519]
[1735594859498,0.61973515,702.26,698.09,1.03571519]
[1735594859701,0.26284974,702.26,698.09,1.03571519]
[1735594859899,1.49202005,702.27,698.09,1.03571519]
[1735594860102,1.49202005,702.27,697.36,1.03571519]
[1735594861300,1.49202005,702.27,697.78,1.03571519]
[1735594861704,0.26280393,702.26,697.78,1.03571519]
[1735594861902,0.88284054,702.26,697.78,1.03571519]
[1735594862302,0.88284054,702.25,697.78,1.03571519]
[1735594862504,0.88284054,702.24,697.86,1.03571519]
[1735594862806,0.26280393,702.23,697.86,1.03571519]
[1735594863209,0.26280393,702.22,697.86,1.03571519]
[1735594863405,0.26280393,702.21,697.86,1.03571519]
[1735594863608,0.26280393,702.2,697.46,1.03571519]
[1735594864007,0.26280393,702.19,697.46,1.03571519]
[1735594864503,0.88284054,702.18,697.46,1.03571519]
[1735594864708,0.88284054,702.17,697.46,1.03571519]
[1735594864908,0.26280393,702.17,697.76,1.03571519]
[1735594865102,0.26280393,702.16,697.76,1.03571519]
[1735594865302,0.26280393,702.15,697.76,1.03571519]
[1735594865507,0.26280393,702.14,697.76,1.03571519]
[1735594865808,0.26280393,702.13,697.76,1.03571519]
[1735594866001,0.26241467,702.12,697.76,1.03571519]
[1735594866407,0.26241467,702.26,697.99,1.03571519]
[1735594866602,0.26241467,702.11,697.99,1.03571519]
[1735594866809,0.26241467,702.25,697.99,1.03571519]
[1735594867111,0.26241467,702.24,697.99,1.03571519]
[1735594867410,0.26241467,702.23,697.69,5.03532835]
[1735594867608,0.26241467,702.22,697.7,2.69852112]
[1735594867908,0.26241467,702.21,697.71,5.03533335]
[1735594868109,0.26241467,702.21,697.72,2.69852112]
[1735594868303,1.49202005,702.27,697.72,2.69852112]
[1735594868304,0.26241467,702.2,697.73,2.33681223]
[1735594868508,0.26237096,702.2,697.73,5.03533335]
[1735594868810,0.26237096,702.26,697.74,5.03533335]
[1735594869006,1.49202005,702.27,697.75,2.69852112]
[1735594869203,1.49202005,702.27,697.76,2.33681223]
[1735594869406,0.26231865,702.25,697.76,5.03533335]
[1735594869608,0.26231865,702.24,697.77,2.69852112]
[1735594869911,0.26231865,702.26,697.77,5.03533335]
[1735594870111,0.26231865,702.26,697.78,2.69852112]
[1735594870311,0.26231865,702.23,697.79,2.33681223]
[1735594870506,0.26231865,702.22,697.79,5.03533335]